bitfinex/quotes_SOLUSD_20220218
["timestamp","ask_amount","ask_price","bid_price","bid_amount"]
[1645193031815,0.1456223,94.352,94.302,2.6293831]
[1645193032213,0.1456223,94.352,94.31,15.9044]
[1645193032414,0.1456223,94.352,94.311,39.26762998]
[1645193032612,0.1456223,94.352,94.311,41.89701308]
[1645193033011,0.1456223,94.352,94.312,2.6293831]
[1645193033412,0.1456223,94.352,94.311,39.26762998]
[1645193034612,0.1456223,94.352,94.312,24.2464]
[1645193035213,0.1456223,94.352,94.313,2.6293831]
[1645193038015,0.1456223,94.352,94.312,24.2464]
[1645193041421,0.1456223,94.352,94.312,26.8757831]
[1645193043126,0.1456223,94.352,94.321,106.2]
[1645193043322,0.1456223,94.352,94.325,169.85]
[1645193043522,0.1456223,94.352,94.327,106.2]
[1645193043720,0.1456223,94.352,94.328,5.3]
[1645193044122,0.1456223,94.352,94.329,106.2]
[1645193044322,0.1456223,94.352,94.33,5.299]
[1645193044623,0.1456223,94.352,94.331,106.2]
[1645193044825,0.1456223,94.352,94.34,15.8984]
[1645193045023,0.1456223,94.352,94.341,41.72631485]
[1645193045224,0.1456223,94.352,94.342,1.41245398]
[1645193049653,0.1456223,94.352,94.343,1.97942827]
[1645193050435,0.1456223,94.352,94.334,50.30555486]
[1645193055537,0.1456223,94.352,94.313,5.299]
[1645193055734,6.08,94.372,94.286,16.2265]
[1645193055941,30.0779,94.371,94.289,2.6293831]
[1645193056341,24.7779,94.371,94.29,54.67891963]
[1645193056740,24.7779,94.371,94.291,108.8293831]
[1645193056943,24.7779,94.371,94.292,5.3]
[1645193057163,24.7779,94.371,94.292,7.9293831]
[1645193057364,30.0779,94.371,94.3,15.9065]
[1645193057966,30.0779,94.371,94.301,22.9329]
[1645193058166,30.3691446,94.371,94.301,22.9329]
[1645193058368,25.0691446,94.371,94.301,22.9329]
[1645193058967,25.0691446,94.371,94.301,25.5622831]
[1645193059969,25.0691446,94.371,94.301,25.0622831]
[1645193060171,5.3,94.37,94.301,25.0622831]
[1645193060771,25.0691446,94.371,94.301,25.0622831]
[1645193061370,5.3,94.37,94.301,25.0622831]
[1645193061770,25.0691446,94.371,94.301,25.0622831]
[1645193062570,25.0691446,94.371,94.302,106.2]
[1645193063072,25.0691446,94.371,94.31,15.9046]
[1645193063471,25.0691446,94.371,94.311,2.6293831]
[1645193063872,25.0691446,94.371,94.311,7.9283831]
[1645193064074,25.0691446,94.371,94.311,2.6293831]
[1645193064273,25.0691446,94.371,94.312,2.6293831]
[1645193065876,25.0691446,94.371,94.32,15.9031]
[1645193066074,25.0691446,94.371,94.321,36.17495864]
[1645193066273,25.0691446,94.371,94.321,38.80434174]
[1645193066475,25.0691446,94.371,94.322,2.6293831]
[1645193069682,25.0691446,94.371,94.321,36.17495864]
[1645193069882,25.0691446,94.371,94.31,15.9046]
[1645193070880,25.0691446,94.371,94.311,41.80231621]
[1645193071282,25.0691446,94.371,94.312,2.6293831]
[1645193073583,25.0691446,94.371,94.312,15.5259]
[1645193074187,25.0691446,94.371,94.313,22.5289]
[1645193074784,25.0691446,94.371,94.314,2.6293831]
[1645193076387,25.0691446,94.371,94.313,22.5289]
[1645193080089,25.0691446,94.371,94.314,2.6293831]
[1645193081589,25.0691446,94.371,94.316,106.2]
[1645193081590,0.2912446,94.371,94.316,106.2]
[1645193081888,0.2912446,94.371,94.325,169.85]
[1645193082089,0.2912446,94.371,94.327,106.2]
[1645193082694,0.2912446,94.371,94.328,2.6293831]
[1645193083288,0.2912446,94.371,94.33,15.9006]
[1645193083495,0.2912446,94.371,94.331,106.2]
[1645193083699,0.2912446,94.371,94.331,108.8293831]
[1645193083894,0.2912446,94.371,94.332,2.6293831]
[1645193084495,0.2912446,94.371,94.34,15.898]
[1645193084705,0.2912446,94.371,94.341,129.877]
[1645193084902,0.2912446,94.371,94.341,132.5063831]
[1645193085203,0.2912446,94.371,94.343,106.2]
[1645193085601,0.2912446,94.371,94.344,2.6293831]
[1645193086401,0.2912446,94.371,94.35,15.8966]
[1645193087204,0.2912446,94.371,94.351,106.2]
[1645193087805,0.2912446,94.371,94.35,15.8966]
[1645193088004,0.2912446,94.371,94.342,42.72266867]
[1645193088204,0.2912446,94.371,94.311,5.299]
[1645193088503,0.2912446,94.371,94.31,53.0011]
[1645193088504,0.2912446,94.371,94.321,23.9799]
[1645193089307,22.6923446,94.383,94.322,44.60949844]
[1645193090607,5.299,94.382,94.323,106.2]
[1645193090807,0.3589944,94.39,94.323,106.2]
[1645193091025,0.3589944,94.39,94.323,108.8293831]
[1645193091222,0.3589944,94.39,94.323,2.6293831]
[1645193091424,0.3589944,94.39,94.33,15.9017]
[1645193092426,0.3589944,94.39,94.331,106.2]
[1645193092628,0.3589944,94.39,94.34,15.8999]
[1645193095031,0.3589944,94.39,94.332,24.1353]
[1645193096433,0.3589944,94.39,94.322,44.60949844]
[1645193096633,5.299,94.389,94.315,24.023]
[1645193096832,22.9514,94.388,94.315,24.023]
[1645193097032,5.299,94.387,94.315,24.023]
[1645193097232,7.9283831,94.387,94.315,24.023]
[1645193097732,2.6293831,94.386,94.315,71.30864547]
[1645193097935,5.299,94.385,94.315,71.30864547]
[1645193099532,5.299,94.387,94.315,71.30864547]
[1645193102641,5.299,94.387,94.315,24.023]
[1645193102841,15.9061,94.38,94.315,24.023]
[1645193103046,5.299,94.379,94.315,24.023]
[1645193103641,5.299,94.379,94.316,47.72772596]
[1645193107652,5.299,94.379,94.316,50.35710906]
[1645193107852,15.9061,94.38,94.316,50.35710906]
[1645193108253,5.299,94.387,94.317,106.2]
[1645193108454,22.9514,94.388,94.317,106.2]
[1645193108652,22.9514,94.388,94.318,2.6293831]
[1645193109453,22.9514,94.388,94.32,15.9026]
[1645193109874,22.9514,94.388,94.321,2.6293831]
[1645193110082,22.9514,94.388,94.321,108.8293831]
[1645193110477,22.9514,94.388,94.322,2.6293831]
[1645193111476,22.9514,94.388,94.33,15.9017]
[1645193111880,22.9514,94.388,94.331,2.6293831]
[1645193114481,22.9514,94.388,94.331,26.0118831]
[1645193114878,22.9514,94.388,94.332,2.6293831]
[1645193119188,22.9514,94.388,94.331,23.3825]
[1645193123090,22.9514,94.388,94.32,15.9033]
[1645193123493,22.9514,94.388,94.321,2.6293831]
[1645193123894,22.9514,94.388,94.321,108.8293831]
[1645193124094,22.9514,94.388,94.331,106.2]
[1645193124495,22.9514,94.388,94.332,2.6293831]
[1645193125096,5.298,94.387,94.31,15.4]
[1645193125300,5.298,94.387,94.315,24.953]
[1645193126198,15.9066,94.38,94.315,24.953]
[1645193127599,5.299,94.379,94.315,24.953]
[1645193132111,5.299,94.379,94.315,27.5823831]
[1645193132304,5.299,94.387,94.315,27.5823831]
[1645193134107,5.299,94.387,94.315,24.953]
[1645193135408,15.9062,94.38,94.315,24.953]
[1645193136234,5.299,94.379,94.315,24.953]
[1645193136430,15.9062,94.38,94.315,24.953]
[1645193137431,5.299,94.379,94.315,24.953]
[1645193137631,15.9062,94.38,94.315,24.953]
[1645193137833,15.9062,94.38,94.316,106.2]
[1645193138032,22.9514,94.388,94.316,106.2]
[1645193138234,22.9514,94.388,94.316,108.8293831]
[1645193138434,22.9514,94.388,94.317,2.6293831]
[1645193139436,22.9514,94.388,94.32,15.9029]
[1645193139635,22.9514,94.388,94.325,169.85]
[1645193139839,0.3589944,94.39,94.325,169.85]
[1645193140036,0.3589944,94.39,94.327,106.2]
[1645193140239,0.3589944,94.39,94.326,25.6786831]
[1645193140537,0.3589944,94.39,94.33,15.9006]
[1645193141943,1.86015904,94.39,94.33,15.9006]
[1645193143747,0.3589944,94.39,94.33,15.9006]
[1645193151058,0.3589944,94.39,94.331,2.6293831]
[1645193151256,0.3589944,94.39,94.332,5.298]
[1645193155760,0.3589944,94.39,94.333,2.6293831]
[1645193156662,0.3589944,94.39,94.332,5.298]
[1645193156962,0.3589944,94.39,94.33,15.9006]
[1645193158162,0.3589944,94.39,94.331,106.2]
[1645193158362,0.3589944,94.39,94.331,108.8293831]
[1645193158564,0.3589944,94.39,94.332,2.6293831]
[1645193160165,0.3589944,94.39,94.341,43.41046995]
[1645193160465,0.3589944,94.39,94.342,24.2904]
[1645193162973,0.3589944,94.39,94.343,47.21638785]
[1645193167280,0.3589944,94.39,94.343,62.82558785]
[1645193169187,0.3589944,94.39,94.342,24.2904]
[1645193170197,1.50116464,94.389,94.342,24.2904]
[1645193170400,1.50116464,94.386,94.342,24.2904]
[1645193170604,1.50116464,94.387,94.342,24.2904]
[1645193170799,1.86015904,94.39,94.342,24.2904]
[1645193171205,1.50116464,94.389,94.342,24.2904]
[1645193171801,1.86015904,94.39,94.342,24.2904]
[1645193172001,1.86015904,94.39,94.342,40.1684]
[1645193177608,1.50116464,94.389,94.342,40.1684]
[1645193178407,1.86015904,94.39,94.342,40.1684]
[1645193178609,1.50116464,94.389,94.342,40.1684]
[1645193178806,1.86015904,94.39,94.342,40.1684]
[1645193179007,1.50116464,94.389,94.342,40.1684]
[1645193179407,1.86015904,94.39,94.342,40.1684]
[1645193180210,1.50116464,94.389,94.342,40.1684]
[1645193182710,1.86015904,94.39,94.342,40.1684]
[1645193182911,0.3589944,94.39,94.343,2.6293831]
[1645193183113,0.3589944,94.39,94.343,108.8293831]
[1645193183510,0.3589944,94.39,94.344,2.6293831]
[1645193183712,0.3589944,94.39,94.351,106.2]
[1645193184814,0.3589944,94.39,94.36,15.8961]
[1645193192323,0.3589944,94.39,94.361,108.8293831]
[1645193192523,0.3589944,94.39,94.371,106.2]
[1645193192727,0.3589944,94.39,94.373,106.2]
[1645193193128,0.3589944,94.39,94.375,106.2]
[1645193195429,0.3589944,94.39,94.374,30.75578029]
[1645193197037,0.3589944,94.39,94.372,24.881]
[1645193197631,0.3589944,94.39,94.346,24.5768]
[1645193197831,0.3589944,94.39,94.33,15.4]
[1645193198035,0.3589944,94.39,94.34,49.88811034]
[1645193199432,0.3589944,94.39,94.341,106.2]
[1645193199631,0.3589944,94.39,94.345,106.2]
[1645193200032,0.3589944,94.39,94.344,24.6871]
[1645193202436,0.5562882,94.39,94.344,24.6871]
[1645193205340,0.5562882,94.39,94.345,106.2]
[1645193206136,0.5562882,94.39,94.35,15.8983]
[1645193209341,0.5562882,94.39,94.344,24.6871]
[1645193213349,0.5562882,94.39,94.35,15.8985]
[1645193213946,0.5562882,94.39,94.344,24.6871]
[1645193214350,0.5562882,94.39,94.345,106.2]
[1645193214549,0.5562882,94.39,94.344,24.6871]
[1645193216956,0.5562882,94.39,94.35,15.8984]
[1645193217952,0.5562882,94.39,94.344,24.6871]
[1645193221084,0.5562882,94.39,94.345,106.2]
[1645193221277,0.5562882,94.39,94.345,2.6293831]
[1645193221578,0.5562882,94.39,94.346,2.6293831]
[1645193221779,0.5562882,94.39,94.344,24.6871]
[1645193222178,42.0820402,94.389,94.35,15.8986]
[1645193222580,42.0820402,94.389,94.344,24.6871]
[1645193222781,42.279334,94.389,94.344,24.6871]
[1645193226182,42.279334,94.389,94.341,15.8905]
[1645193228888,42.279334,94.389,94.342,23.5136]
[1645193233798,0.1972938,94.389,94.342,23.5136]
[1645193234198,0.1972938,94.389,94.35,15.8984]
[1645193235400,0.1972938,94.389,94.342,23.5136]
[1645193235899,1.69845844,94.389,94.342,23.5136]
[1645193236800,0.1972938,94.389,94.342,23.5136]
[1645193237624,1.69845844,94.389,94.342,23.5136]
[1645193238023,0.1972938,94.389,94.342,23.5136]
[1645193239225,1.69845844,94.389,94.342,23.5136]
[1645193240226,0.1972938,94.389,94.342,23.5136]
[1645193244931,1.69845844,94.389,94.342,23.5136]
[1645193248434,1.50116464,94.388,94.342,23.5136]
[1645193249037,1.69845844,94.388,94.342,23.5136]
[1645193249237,0.1972938,94.388,94.342,23.5136]
[1645193249637,0.1972938,94.388,94.343,106.2]
[1645193250036,0.1972938,94.388,94.35,15.8986]
[1645193251138,0.1972938,94.388,94.34,15.9001]
[1645193251339,0.1972938,94.388,94.341,22.647]
[1645193254040,0.1972938,94.388,94.342,2.6293831]
[1645193255340,0.1972938,94.388,94.343,30.06687757]
[1645193256141,0.1972938,94.388,94.342,2.6293831]
[1645193256343,0.1972938,94.388,94.341,38.5379]
[1645193257144,0.1972938,94.388,94.342,30.06771066]
[1645193258849,0.1972938,94.388,94.35,15.8984]
[1645193272888,0.1972938,94.388,94.341,22.647]
[1645193273289,47.09612581,94.386,94.341,22.647]
[1645193273492,28.1303,94.385,94.341,22.647]
[1645193274089,28.3275938,94.385,94.341,22.647]
[1645193274690,23.0295938,94.385,94.341,22.647]
[1645193275092,0.1972938,94.385,94.342,106.2]
[1645193275294,0.1972938,94.385,94.342,141.56563946]
[1645193275491,0.1972938,94.385,94.342,144.19502256]
[1645193275693,0.1972938,94.385,94.344,106.2]
[1645193275891,0.1972938,94.385,94.343,32.69702256]
[1645193276092,0.1972938,94.385,94.342,5.298]
[1645193276292,0.1972938,94.385,94.35,15.8981]
[1645193278999,0.1972938,94.385,94.351,106.2]
[1645193279200,0.1972938,94.385,94.355,106.2]
[1645193279602,0.1972938,94.385,94.354,31.40901132]
[1645193280499,0.1972938,94.385,94.355,106.2]
[1645193280801,0.1972938,94.385,94.354,31.40901132]
[1645193282508,0.1972938,94.385,94.355,106.2]
[1645193282909,0.1972938,94.385,94.354,31.40901132]
[1645193290632,0.1972938,94.385,94.361,106.2]
[1645193290832,0.1972938,94.385,94.365,169.85]
[1645193291132,1.50116464,94.424,94.367,106.2]
[1645193291333,1.50116464,94.432,94.371,106.2]
[1645193291537,1.50116464,94.437,94.372,5.297]
[1645193291735,1.62108086,94.438,94.372,5.297]
[1645193291942,1.50116464,94.436,94.384,63.65]
[1645193292136,0.11991622,94.438,94.385,198.4384]
[1645193292335,0.11991622,94.438,94.385,201.0677831]
[1645193292938,52.6546595,94.432,94.387,106.2]
[1645193293136,0.11991622,94.438,94.387,106.2]
[1645193293137,0.11991622,94.438,94.388,5.296]
[1645193293336,0.11991622,94.438,94.395,169.85]
[1645193293537,0.11991622,94.438,94.396,5.296]
[1645193294636,0.11991622,94.438,94.4,15.8881]
[1645193295136,0.11991622,94.438,94.401,46.15727908]
[1645193295742,0.11991622,94.438,94.402,108.8293831]
[1645193295937,0.11991622,94.438,94.403,2.48110304]
[1645193298347,54.96071638,94.429,94.403,2.48110304]
[1645193298748,0.55109692,94.412,94.403,2.48110304]
[1645193298950,0.55109692,94.412,94.4,15.8881]
[1645193300053,0.11991622,94.438,94.4,15.8881]
[1645193301060,53.79242014,94.423,94.4,15.8881]
[1645193302356,53.79242014,94.423,94.405,0.82116675]
[1645193302754,53.79242014,94.423,94.406,2.48110304]
[1645193303155,53.79242014,94.423,94.405,0.82116675]
[1645193303957,0.55109692,94.412,94.405,0.82116675]
[1645193304861,53.79242014,94.423,94.406,2.48110304]
[1645193306866,0.11991622,94.438,94.406,2.48110304]
[1645193307464,0.11991622,94.438,94.407,0.8208901]
[1645193308064,52.32414572,94.433,94.407,0.8208901]
[1645193311994,52.32414572,94.433,94.406,2.48110304]
[1645193313999,0.11991622,94.438,94.406,2.48110304]
[1645193314995,51.10667515,94.43,94.406,2.48110304]
[1645193315597,51.10667515,94.43,94.401,23.224]
[1645193315796,51.10667515,94.43,94.407,2.48110304]
[1645193317301,51.10667515,94.43,94.408,0.82075617]
[1645193320901,0.55109692,94.412,94.409,2.48110304]
[1645193321101,51.10667515,94.43,94.408,0.82075617]
[1645193322102,0.55109692,94.412,94.408,0.82075617]
[1645193322305,51.10667515,94.43,94.408,0.82075617]
[1645193322502,51.10667515,94.43,94.407,2.48110304]
[1645193323603,51.10667515,94.43,94.391,23.58397954]
[1645193323803,44.85380493,94.413,94.391,23.58397954]
[1645193324003,44.85380493,94.413,94.391,0.82047954]
[1645193325102,0.5346145,94.413,94.391,0.82047954]
[1645193327613,0.5346145,94.413,94.39,16.71503127]
[1645193328911,0.5346145,94.413,94.39,0.82283127]
[1645193332314,0.5346145,94.413,94.36,16.72036963]
[1645193337021,0.5346145,94.413,94.361,106.2]
[1645193337217,0.5346145,94.413,94.37,15.8949]
[1645193337821,0.5346145,94.413,94.371,22.9459]
[1645193338818,0.5346145,94.413,94.372,44.53448735]
[1645193339417,0.5346145,94.413,94.38,15.8939]
[1645193347232,0.5346145,94.413,94.382,0.82435289]
[1645193352344,0.5346145,94.413,94.383,106.2]
[1645193352545,0.5346145,94.413,94.391,106.2]
[1645193352745,0.5346145,94.413,94.393,106.2]
[1645193353144,0.5346145,94.413,94.394,2.6293831]
[1645193353348,1e-08,94.413,94.394,2.6293831]
[1645193353546,1e-08,94.413,94.393,5.296]
[1645193354348,1e-08,94.413,94.4,15.8904]
[1645193358968,0.5346145,94.413,94.4,15.8904]
[1645193362272,0.5346145,94.413,94.402,0.82158559]
[1645193362471,0.5346145,94.413,94.403,2.48110304]
[1645193364177,0.53212824,94.42,94.403,2.48110304]
[1645193364381,1.449e-05,94.413,94.405,169.85]
[1645193364581,0.11991622,94.438,94.415,169.85]
[1645193364773,0.11991622,94.438,94.417,106.2]
[1645193364977,0.11991622,94.438,94.421,106.2]
[1645193365177,0.11991622,94.438,94.423,106.2]
[1645193365378,0.11991622,94.438,94.425,169.85]
[1645193365580,0.23983244,94.438,94.426,5.293]
[1645193365780,0.23983244,94.438,94.431,106.2]
[1645193365984,0.23983244,94.438,94.432,5.293]
[1645193366180,0.23983244,94.438,94.433,106.2]
[1645193366381,0.23983244,94.438,94.434,5.293]
[1645193366882,0.23983244,94.438,94.433,106.2]
[1645193367581,0.23983244,94.438,94.432,2.48110304]
[1645193368782,0.23983244,94.438,94.43,15.4]
[1645193368983,0.23983244,94.438,94.433,1.79021435]
[1645193369182,0.23983244,94.438,94.43,15.4]
[1645193369384,0.23983244,94.438,94.426,49.75631163]
[1645193370283,0.23983244,94.438,94.428,1.79030915]
[1645193370889,0.23983244,94.438,94.429,5.293]
[1645193371282,0.23983244,94.438,94.43,2.6293831]
[1645193372484,0.23983244,94.438,94.43,108.8293831]
[1645193372688,0.23983244,94.438,94.43,2.6293831]
[1645193372883,0.13849482,94.438,94.43,2.6293831]
[1645193373084,0.13849482,94.438,94.429,15.9714]
[1645193374487,0.13849482,94.438,94.43,2.6293831]
[1645193374688,0.13849482,94.438,94.429,15.9714]
[1645193375288,0.13849482,94.438,94.43,2.6293831]
[1645193375789,0.13849482,94.438,94.43,108.8293831]
[1645193376193,0.13849482,94.438,94.431,2.6293831]
[1645193377191,0.13849482,94.438,94.428,1.79030915]
[1645193377794,0.13849482,94.438,94.428,107.99030915]
[1645193378196,0.34117006,94.438,94.428,107.99030915]
[1645193378397,0.34117006,94.438,94.431,106.2]
[1645193378597,0.34117006,94.438,94.43,15.8824]
[1645193379201,0.34117006,94.438,94.431,2.6293831]
[1645193379600,0.34117006,94.438,94.43,15.8824]
[1645193382303,0.34117006,94.438,94.432,0.81744771]
[1645193384827,0.34117006,94.438,94.433,5.293]
[1645193385328,0.34117006,94.438,94.432,0.81744771]
[1645193387535,0.34117006,94.438,94.43,3.29827426]
[1645193387740,0.34117006,94.438,94.43,0.81717122]
[1645193388636,0.55109692,94.437,94.43,0.81717122]
[1645193392148,0.55109692,94.437,94.42,16.70464771]
[1645193392645,0.55109692,94.437,94.42,0.81744771]
[1645193397550,0.55109692,94.437,94.41,16.60693418]
[1645193399052,0.34117006,94.438,94.41,16.60693418]
[1645193399658,0.34117006,94.438,94.39,15.4]
[1645193399854,5.295,94.437,94.357,24.2096]
[1645193400059,7.9243831,94.437,94.354,21.0123]
[1645193400257,1.50116464,94.431,94.354,15.7173]
[1645193400459,1.50116464,94.429,94.355,49.54364636]
[1645193400657,54.13070293,94.428,94.355,49.54364636]
[1645193400856,47.33253829,94.428,94.356,106.2]
[1645193401058,5.297,94.427,94.357,5.297]
[1645193401258,29.1648,94.427,94.356,5.297]
[1645193401457,29.1648,94.427,94.355,49.54364636]
[1645193401659,1.50116464,94.426,94.34,15.8989]
[1645193401861,15.8993,94.42,94.34,15.8989]
[1645193402060,5.297,94.419,94.341,30.05154262]
[1645193402283,111.497,94.419,94.341,30.05154262]
[1645193402481,111.497,94.419,94.32,15.4]
[1645193402482,5.297,94.419,94.332,30.05154262]
[1645193402682,6.79816464,94.42,94.333,44.39139187]
[1645193402888,5.297,94.42,94.333,44.39139187]
[1645193403281,5.297,94.421,94.334,30.05154262]
[1645193403481,15.9012,94.41,94.335,5.297]
[1645193403684,56.66893209,94.409,94.335,5.297]
[1645193403882,22.74,94.408,94.335,5.297]
[1645193404083,5.298,94.407,94.333,39.09439187]
[1645193404585,15.9029,94.4,94.334,30.05336151]
[1645193404782,5.298,94.399,94.333,39.09439187]
[1645193405783,5.298,94.399,94.321,5.298]
[1645193405984,15.9048,94.39,94.32,31.3026]
[1645193406284,28.4408,94.389,94.32,31.3026]
[1645193406884,23.1418,94.389,94.321,148.93565608]
[1645193407086,24.2212,94.407,94.333,106.2]
[1645193407087,43.26196759,94.393,94.333,106.2]
[1645193407286,43.26196759,94.393,94.337,106.2]
[1645193407486,43.26196759,94.393,94.338,5.298]
[1645193407886,43.26196759,94.393,94.339,106.2]
[1645193408082,43.26196759,94.393,94.339,108.8293831]
[1645193408282,43.26196759,94.393,94.34,5.298]
[1645193408483,43.26196759,94.393,94.35,15.8972]
[1645193408687,43.26196759,94.393,94.351,5.298]
[1645193408885,43.26196759,94.393,94.342,5.298]
[1645193409085,43.26196759,94.393,94.342,7.9273831]
[1645193409587,43.26196759,94.393,94.343,2.6293831]
[1645193409783,43.26196759,94.393,94.344,5.298]
[1645193410191,43.26196759,94.393,94.345,2.6293831]
[1645193410386,43.26196759,94.393,94.36,15.8971]
[1645193410588,43.26196759,94.393,94.346,5.298]
[1645193410789,43.26196759,94.393,94.337,5.298]
[1645193411087,43.26196759,94.393,94.285,21.47476259]
[1645193411088,43.26196759,94.393,94.333,5.298]
[1645193411293,5.298,94.392,94.322,52.79486388]
[1645193411488,23.6112,94.391,94.32,31.3034]
[1645193411788,5.299,94.39,94.32,31.3034]
[1645193413389,21.2036,94.39,94.32,31.3034]
[1645193413688,108.8293831,94.389,94.32,15.4]
[1645193413892,5.299,94.388,94.32,15.4]
[1645193414091,106.2,94.387,94.32,15.4]
[1645193414289,5.299,94.386,94.32,15.4]
[1645193414892,15.9063,94.38,94.32,15.4]
[1645193415091,5.299,94.379,94.32,15.4]
[1645193415291,66.0139728,94.378,94.32,15.4]
[1645193415493,5.299,94.377,94.32,15.4]
[1645193415892,5.299,94.377,94.321,2.6293831]
[1645193416292,66.0139728,94.378,94.321,2.6293831]
[1645193416692,66.0139728,94.378,94.32,31.303]
[1645193416894,5.299,94.377,94.32,31.303]
[1645193418995,5.299,94.377,94.32,15.4]
[1645193419799,5.299,94.377,94.295,2.6293831]
[1645193419999,5.299,94.377,94.3,15.4]
[1645193421398,15.9077,94.37,94.3,31.3077]
[1645193421597,5.3,94.369,94.3,31.3077]
[1645193422601,106.2,94.359,94.291,5.3]
[1645193422800,5.3,94.358,94.251,5.3]
[1645193423000,106.2,94.357,94.233,5.301]
[1645193423201,5.301,94.356,94.233,16.2733]
[1645193423400,5.301,94.356,94.232,24.987]
[1645193423602,106.2,94.354,94.231,5.301]
[1645193423800,106.2,94.339,94.229,5.301]
[1645193424003,15.9203,94.31,94.229,5.301]
[1645193425010,5.304,94.307,94.266,0.00730996]
[1645193425203,15.9205,94.3,94.266,0.00730996]
[1645193425404,111.503,94.299,94.266,0.00730996]
[1645193425602,114.1323831,94.299,94.266,0.00730996]
[1645193425803,2.6293831,94.298,94.266,0.00730996]
[1645193426005,5.303,94.297,94.266,0.00730996]
[1645193426202,106.2,94.289,94.266,0.00730996]
[1645193426405,15.9241,94.29,94.266,0.00730996]
[1645193426406,47.97708674,94.287,94.266,0.00730996]
[1645193427003,5.303,94.286,94.266,0.00730996]
[1645193428005,48.2292,94.285,94.266,0.00730996]
[1645193428204,5.303,94.284,94.266,0.00730996]
[1645193428403,15.9234,94.28,94.266,0.00730996]
[1645193428603,5.303,94.279,94.266,0.00730996]
[1645193429807,5.303,94.279,94.201,5.303]
[1645193430206,15.925,94.27,94.201,5.303]
[1645193430404,15.925,94.27,94.2,15.922]
[1645193430604,5.305,94.269,94.2,15.922]
[1645193430804,47.65232075,94.268,94.2,15.922]
[1645193431106,5.305,94.267,94.2,15.922]
[1645193432710,5.305,94.267,94.184,5.305]
[1645193432711,111.505,94.267,94.19,15.9258]
[1645193432909,15.9267,94.26,94.181,106.2]
[1645193433107,5.306,94.259,94.181,106.2]
[1645193433707,5.306,94.259,94.18,106.2]
[1645193434308,5.306,94.259,94.18,122.1274]
[1645193434509,106.2,94.249,94.166,5.306]
[1645193434709,5.307,94.248,94.166,15.8059]
[1645193434908,5.307,94.26,94.166,15.8059]
[1645193435108,5.307,94.26,94.167,5.307]
[1645193436036,5.307,94.26,94.17,121.6287]
[1645193436209,5.307,94.265,94.171,5.307]
[1645193436412,5.307,94.265,94.171,7.9363831]
[1645193436610,5.307,94.265,94.171,2.6293831]
[1645193436818,5.307,94.265,94.172,7.9353831]
[1645193437211,5.307,94.265,94.173,2.6293831]
[1645193437412,15.9269,94.26,94.18,15.9269]
[1645193437711,0.76311967,94.258,94.18,15.9269]
[1645193437914,5.306,94.257,94.18,15.9269]
[1645193438312,5.306,94.257,94.181,43.08502258]
[1645193438515,5.306,94.257,94.181,45.71440568]
[1645193438913,5.306,94.257,94.182,2.6293831]
[1645193440320,5.306,94.257,94.185,63.65]
[1645193440521,0.76311967,94.258,94.191,106.2]
[1645193440719,0.76311967,94.258,94.192,5.306]
[1645193440916,0.76311967,94.258,94.192,7.9353831]
[1645193441316,0.76311967,94.258,94.193,108.8293831]
[1645193441517,0.76311967,94.258,94.2,15.9229]
[1645193441715,0.76311967,94.258,94.201,5.306]
[1645193442321,111.506,94.279,94.201,5.306]
[1645193442517,111.506,94.279,94.2,15.9229]
[1645193442518,5.305,94.267,94.2,15.9229]
[1645193442716,7.9343831,94.267,94.19,15.926]
[1645193443119,2.6293831,94.266,94.19,15.926]
[1645193443317,5.306,94.265,94.19,15.926]
[1645193443719,5.306,94.267,94.191,5.306]
[1645193444320,15.9264,94.26,94.191,5.306]
[1645193450732,5.306,94.259,94.191,5.306]
[1645193452755,5.306,94.259,94.19,15.926]
[1645193453656,5.306,94.259,94.19,122.126]
[1645193453954,5.306,94.266,94.192,106.2]
[1645193454155,5.306,94.266,94.2,122.1231]